bitfinex/quotes_ETHUSD_20250611
["timestamp","ask_amount","ask_price","bid_price","bid_amount"]
[1749610936877,8.90188682,2779.6,2779.5,9.313]
[1749610937078,8.90188682,2779.6,2779.5,10.286]
[1749610939089,12.60488682,2779.6,2779.5,10.286]
[1749610941307,6.37738971,2779.6,2779.5,10.286]
[1749610941506,11.45889711,2779.6,2779.5,10.286]
[1749610943172,11.81829711,2779.6,2779.5,10.286]
[1749610943682,3.703,2779.6,2779.5,10.286]
[1749610944071,4.253,2779.6,2779.5,10.286]
[1749610945104,0.3994,2779.9,2779.5,10.286]
[1749610945508,0.55,2779.8,2779.5,10.286]
[1749610945705,0.3994,2779.9,2779.5,10.286]
[1749610945905,0.55,2779.8,2779.5,10.286]
[1749610946108,0.3994,2779.9,2779.5,10.286]
[1749610946311,0.04,2779.9,2779.5,10.286]
[1749610948900,0.04,2779.9,2779.5,13.988]
[1749610950512,0.04,2779.9,2779.6,6.22749711]
[1749610950713,0.04,2779.9,2779.8,16.22749711]
[1749610951707,0.04,2779.9,2779.8,16.58337589]
[1749610954655,0.04,2779.9,2779.8,46.58337589]
[1749610956296,0.04,2779.9,2779.8,45.02787878]
[1749610956525,0.04,2779.9,2779.8,40.35587878]
[1749610956717,0.04,2779.9,2779.8,45.02787878]
[1749610960636,0.04,2779.9,2779.8,45.02687878]
[1749610962232,0.04,2779.9,2779.8,40.35587878]
[1749610962431,1.0245,2779.9,2779.8,0.971]
[1749610962607,1.74969971,2779.9,2779.8,0.971]
[1749610963497,1.0245,2779.9,2779.8,0.971]
[1749610964745,0.55,2779.8,2779.2,3.699]
[1749610964897,0.55,2779.8,2779.3,10.281]
[1749610972115,0.55,2779.8,2779.3,9.31]
[1749610972320,0.55,2779.8,2779.4,0.971]
[1749610974173,7.18399711,2779.6,2779.5,0.971]
[1749610974844,0.9565,2779.6,2779.5,0.971]
[1749610977982,1.5229,2779.8,2779.5,0.971]
[1749610978155,0.9729,2779.8,2779.5,0.971]
[1749610978357,0.04,2779.9,2779.5,0.971]
[1749610978669,0.04,2779.9,2779.6,0.43513114]
[1749610978965,0.04,2779.9,2779.6,3.699]
[1749610980256,0.04,2779.9,2779.7,0.971]
[1749610980570,1.0408,2779.9,2779.8,0.971]
[1749610983387,0.04,2779.9,2779.8,0.971]
[1749610984877,0.04,2779.9,2779.8,10.283]
[1749610985985,0.04,2779.9,2779.8,10.281]
[1749610987617,0.04,2779.9,2779.8,10.71613114]
[1749610988197,0.04,2779.9,2779.8,20.71613114]
[1749610988372,0.04,2779.9,2779.8,24.41413114]
[1749610988569,0.04,2779.9,2779.8,54.84394948]
[1749610988822,0.04,2779.9,2779.8,55.22637361]
[1749610989981,0.04,2779.9,2779.8,43.79637361]
[1749610990392,0.04,2779.9,2779.8,39.12937361]
[1749610990603,0.04,2779.9,2779.8,24.36142413]
[1749610990903,0.04,2779.9,2779.8,10.281]
[1749610991503,0.04,2779.9,2779.8,20.281]
[1749610992884,0.04,2779.9,2779.8,10.28]
[1749610994191,0.04,2779.9,2779.8,40.28]
[1749610994881,0.04,2779.9,2779.8,50.28]
[1749610997192,0.04,2779.9,2779.8,36.245]
[1749610997406,0.04,2779.9,2779.8,34.201]
[1749610998013,0.04,2779.9,2779.8,33.869]
[1749610999612,0.04,2779.9,2779.8,29.969]
[1749611000074,0.04,2779.9,2779.8,33.05649711]
[1749611000704,0.04,2779.9,2779.8,26.829]
[1749611000901,0.04,2779.9,2779.8,25.53849711]
[1749611001093,0.04,2779.9,2779.8,30.20349711]
[1749611001474,0.04,2779.9,2779.8,10.28]
[1749611002506,0.04,2779.9,2779.8,9.311]
[1749611002707,0.04,2779.9,2779.8,10.28]
[1749611006118,0.59,2779.9,2779.8,9.311]
[1749611006297,2.30234971,2779.9,2779.8,10.28]
[1749611006484,1.6206,2779.9,2779.8,10.28]
[1749611009727,1.6206,2779.9,2779.8,9.311]
[1749611009886,1.6206,2779.9,2779.8,0.969]
[1749611015114,1.6206,2779.9,2779.8,10.28]
[1749611019007,1.6206,2779.9,2779.8,10.279]
[1749611019218,2.40540971,2779.9,2779.8,10.279]
[1749611020654,1.6206,2779.9,2779.8,10.279]
[1749611025667,1.0706,2779.9,2779.8,10.279]
[1749611026208,0.04,2779.9,2779.8,10.279]
[1749611031734,0.59,2779.9,2779.8,10.279]
[1749611031947,1.5288,2779.9,2779.8,10.279]
[1749611032146,2.67392971,2779.9,2779.8,10.279]
[1749611032465,1.73512971,2779.9,2779.8,0.968]
[1749611032967,2.72212971,2779.9,2779.8,0.968]
[1749611035035,6.41712971,2779.9,2779.8,0.968]
[1749611035240,11.49949711,2779.9,2779.8,0.968]
[1749611037680,1.027,2779.9,2779.8,0.968]
[1749611037883,0.04,2779.9,2779.8,0.968]
[1749611044780,0.04,2779.9,2779.8,1.0176]
[1749611045375,0.04,2779.9,2779.8,4.7116]
[1749611046093,0.04,2779.9,2779.8,5.2216]
[1749611046304,0.04,2779.9,2779.8,15.58625199]
[1749611046587,0.03640268,2779.9,2779.8,15.58625199]
[1749611046794,0.03640268,2779.9,2779.8,15.07625199]
[1749611047395,0.04,2780.9,2780.1,0.0496]
[1749611047695,0.04,2780.9,2780.4,0.0496]
[1749611053046,0.04,2780.9,2780.8,0.0496]
[1749611053340,0.04,2780.9,2780.8,1.0166]
[1749611054242,0.04,2780.9,2780.8,1.270795]
[1749611054442,0.04,2780.9,2780.8,1.0166]
[1749611055833,0.04,2780.9,2780.8,1.27821499]
[1749611056145,0.04,2780.9,2780.8,1.0166]
[1749611057311,0.04,2780.9,2780.8,4.7096]
[1749611058058,0.04,2780.9,2780.8,4.96806176]
[1749611058212,0.04,2780.9,2780.8,14.96806176]
[1749611059230,0.04,2780.9,2780.8,21.21473539]
[1749611059414,0.04,2780.9,2780.8,57.46140902]
[1749611059612,0.04,2780.9,2780.8,51.21473539]
[1749611060958,0.04,2780.9,2780.8,24.76173539]
[1749611061572,0.04,2780.9,2780.8,23.37473539]
[1749611061730,0.04,2780.9,2780.8,21.21473539]
[1749611061934,0.04,2780.9,2780.8,23.70873539]
[1749611062642,0.04,2780.9,2780.8,21.21373539]
[1749611062840,0.04,2780.9,2780.8,11.0166]
[1749611063038,0.04,2780.9,2780.8,14.7086]
[1749611063449,0.04,2780.9,2780.8,0.0496]
[1749611063656,0.04,2780.9,2780.8,4.7086]
[1749611063841,0.04,2780.9,2780.8,4.659]
[1749611064776,0.04,2780.9,2780.6,0.0496]
[1749611064979,0.04,2780.9,2780.8,10.967]
[1749611066090,0.04,2780.9,2780.8,0.967]
[1749611069787,0.04,2780.9,2780.8,1.0166]
[1749611070294,0.04,2780.9,2780.8,11.0166]
[1749611071196,0.04,2780.9,2780.8,11.5266]
[1749611072345,0.04,2780.9,2780.8,20.8326]
[1749611075691,0.52670067,2781.2,2780.8,50.783]
[1749611075886,0.52670067,2781.2,2781.1,6.24667363]
[1749611076082,0.52670067,2781.2,2781.1,19.93767363]
[1749611076685,0.52670067,2781.2,2781.1,13.691]
[1749611076880,0.52670067,2781.2,2781.1,19.93767363]
[1749611078976,0.52670067,2781.2,2781.1,14.656]
[1749611079183,0.52670067,2781.2,2781.1,20.90267363]
[1749611080053,1.0371,2782.0,2781.3,30.0]
[1749611080293,1.0371,2782.0,2781.6,6.24667363]
[1749611080481,1.0371,2782.0,2781.7,3.69]
[1749611081298,1.0371,2782.0,2781.6,6.24667363]
[1749611081497,1.0371,2782.0,2781.6,0.35719157]
[1749611081658,1.0371,2782.0,2781.7,0.966]
[1749611082760,1.0371,2782.0,2781.2,10.51]
[1749611082954,1.0371,2782.0,2781.3,4.656]
[1749611083158,1.0371,2782.0,2781.3,5.01630311]
[1749611084197,1.0371,2782.0,2781.4,0.966]
[1749611085393,1.0371,2782.0,2781.4,4.656]
[1749611088298,1.0371,2782.0,2781.5,9.305]
[1749611088686,0.05,2782.4,2781.6,10.0]
[1749611088997,0.04,2782.9,2782.4,40.0]
[1749611089197,0.04,2782.9,2782.8,6.24667363]
[1749611089362,0.04,2782.9,2782.8,9.94967363]
[1749611089567,0.04,2782.9,2782.8,0.966]
[1749611089768,0.04,2782.9,2782.2,0.54085782]
[1749611090007,0.04,2782.9,2782.8,0.966]
[1749611090205,0.04,2782.9,2782.4,6.24667363]
[1749611090506,0.04,2782.9,2782.5,0.966]
[1749611092674,0.9232,2782.8,2782.5,0.966]
[1749611093702,0.9232,2782.8,2782.3,6.24667363]
[1749611094168,0.9232,2782.8,2782.4,0.965]
[1749611094704,0.9232,2782.8,2782.5,0.965]
[1749611096013,0.9266,2782.8,2782.6,4.668]
[1749611096187,0.9266,2782.8,2782.7,0.965]
[1749611096588,6.24667363,2782.8,2782.2,0.51]
[1749611096774,0.04,2782.9,2781.4,1.077155]
[1749611096775,7.17327363,2782.6,2782.3,0.965]
[1749611096972,0.9266,2782.5,2781.6,10.0]
[1749611097169,0.9266,2782.5,2781.8,10.0]
[1749611097402,0.9266,2782.5,2781.7,4.67]
[1749611098517,0.9266,2782.5,2781.8,0.965]
[1749611098989,0.9266,2782.5,2781.8,7.21167363]
[1749611100378,0.9266,2782.5,2782.0,6.24667363]
[1749611100578,0.9266,2782.5,2782.4,6.24667363]
[1749611100778,0.9506,2782.8,2782.4,6.24667363]
[1749611101017,0.04,2782.9,2782.6,6.24667363]
[1749611101211,0.04,2782.9,2782.7,0.965]
[1749611101399,0.04,2782.9,2782.7,1.31961501]
[1749611102516,0.04,2782.9,2782.2,10.0]
[1749611102816,0.9914,2782.8,2782.3,0.965]
[1749611103020,0.04,2782.9,2782.4,9.53010202]
[1749611103323,0.04,2782.9,2782.7,9.53010202]
[1749611103481,0.04,2782.9,2782.7,13.23710202]
[1749611104015,0.04,2782.9,2782.8,10.0]
[1749611104924,0.04,2782.9,2782.8,4.671]
[1749611105220,0.04,2782.9,2782.7,0.36365985]
[1749611105522,0.04,2782.9,2782.8,4.671]
[1749611106025,0.04,2782.9,2782.8,0.965]
[1749611106809,0.04,2782.9,2782.8,0.975]
[1749611111421,0.9419,2782.9,2782.2,0.51]
[1749611111626,1.4919,2782.9,2782.8,0.975]
[1749611111810,0.9019,2782.7,2781.7,3.704]
[1749611111988,0.9019,2782.7,2781.8,0.975]
[1749611112325,0.9019,2782.7,2781.9,0.975]
[1749611114190,0.9019,2782.7,2782.1,9.53010202]
[1749611114391,1.0105,2782.9,2782.2,3.704]
[1749611115818,1.0105,2782.9,2782.3,10.0]
[1749611118726,1.0105,2782.9,2782.5,10.0]
[1749611123234,1.0105,2782.9,2782.6,0.975]
[1749611123799,1.0105,2782.9,2782.6,10.975]
[1749611126433,1.0105,2782.9,2782.7,0.974]
[1749611129939,1.0105,2782.9,2782.8,9.301]
[1749611131910,0.04,2782.9,2782.8,9.301]
[1749611132940,0.04,2782.9,2782.8,15.54302606]
[1749611133108,0.04,2782.9,2782.8,9.301]
[1749611135022,0.04,2782.9,2782.8,19.301]
[1749611135749,0.04,2782.9,2782.8,22.994]
[1749611135969,0.04,2782.9,2782.8,19.301]
[1749611136243,0.04,2782.9,2782.8,23.967]
[1749611140751,0.9679,2783.8,2782.9,10.94074921]
[1749611140993,0.9679,2783.7,2782.9,10.0]
[1749611141263,6.24202606,2783.8,2783.0,4.675]
[1749611141264,0.9679,2783.5,2783.0,4.675]
[1749611141464,0.9679,2783.5,2783.0,0.966]
[1749611142243,0.9679,2783.5,2783.1,0.966]
[1749611144071,0.9679,2783.5,2783.1,4.673]
[1749611144390,0.9728,2783.8,2783.1,4.673]
[1749611144749,0.9728,2783.8,2782.9,10.0]
[1749611145099,0.9728,2783.8,2783.0,4.675]
[1749611145450,0.9728,2783.8,2783.1,0.966]
[1749611145778,6.24202606,2783.7,2783.2,0.966]
[1749611146003,0.9538,2783.5,2782.8,9.301]
[1749611146182,0.9538,2783.5,2783.3,0.966]
[1749611147064,0.9538,2783.5,2782.8,9.301]
[1749611147267,0.9538,2783.5,2782.9,0.966]
[1749611147573,0.9126,2783.4,2782.9,0.966]
[1749611149293,1.70021087,2783.4,2782.9,0.966]
[1749611150484,7.77812606,2783.3,2782.8,9.301]
[1749611150688,0.9861,2783.2,2783.0,0.966]
[1749611151290,0.9861,2783.2,2782.8,9.301]
[1749611151494,0.9861,2783.2,2782.9,0.966]
[1749611153995,0.9974,2783.0,2782.9,0.966]
[1749611154194,2.27134261,2783.0,2782.9,0.966]
[1749611159511,1.5474,2783.0,2782.9,0.966]
[1749611160080,1.5022,2782.9,2782.8,9.301]
[1749611160299,1.5022,2782.9,2782.8,10.267]
[1749611160300,7.74422606,2782.9,2782.8,10.267]
[1749611162177,11.44422606,2782.9,2782.8,10.267]
[1749611162376,12.58864867,2782.9,2782.8,10.267]
[1749611165510,6.34662261,2782.9,2782.8,10.267]
[1749611167974,2.09662261,2782.9,2782.8,10.267]
[1749611168171,0.9522,2782.9,2782.8,10.267]
[1749611168602,0.55,2783.0,2782.8,10.267]
[1749611170642,4.604,2783.2,2782.8,10.267]
[1749611171332,0.909,2783.2,2782.8,10.267]
[1749611172109,0.55,2783.2,2782.8,10.267]
[1749611172294,0.909,2783.2,2782.8,10.267]
[1749611173636,0.9692,2783.7,2782.8,10.267]
[1749611173797,0.55,2783.6,2782.8,13.959]
[1749611173989,1.73122261,2783.6,2782.8,13.959]
[1749611175929,0.55,2783.6,2782.8,13.959]
[1749611177048,0.9692,2783.7,2782.8,20.20102606]
[1749611180640,0.55,2783.8,2782.3,0.40694861]
[1749611180876,0.55,2783.8,2782.7,6.24202606]
[1749611181167,8.30950606,2783.8,2782.7,6.24202606]
[1749611181757,8.30950606,2783.8,2782.8,3.69]
[1749611183984,4.6238,2783.9,2782.9,6.24202606]
[1749611184137,0.9348,2783.9,2782.9,6.24202606]
[1749611184523,6.24202606,2783.8,2782.8,3.69]
[1749611185160,6.24202606,2783.8,2782.9,10.268]
[1749611186273,0.04,2783.9,2783.1,6.24202606]
[1749611186474,0.04,2783.9,2783.2,3.689]
[1749611186849,0.04,2783.9,2783.3,0.20380166]
[1749611187049,0.04,2783.9,2783.3,10.0]
[1749611187410,0.04,2783.9,2783.5,6.24202606]
[1749611187570,0.04,2783.9,2783.6,3.689]
[1749611187777,0.04,2783.9,2783.0,10.0]
[1749611188086,0.04,2783.9,2783.3,30.0]
[1749611188270,0.04,2783.9,2783.4,3.689]
[1749611191345,0.04,2783.9,2783.5,4.657]
[1749611192381,6.24202606,2783.8,2783.0,0.51]
[1749611192688,6.24202606,2783.6,2783.1,0.968]
[1749611192884,6.24202606,2783.4,2782.9,9.3]
[1749611193084,6.24202606,2783.4,2783.0,0.968]
[1749611193783,0.9482,2783.6,2783.0,0.968]
[1749611195882,7.19022606,2783.6,2783.0,0.968]
[1749611196986,0.956,2783.3,2783.0,0.968]
[1749611197161,6.24202606,2783.2,2783.0,0.968]
[1749611197990,0.956,2783.3,2783.0,0.968]
[1749611198194,7.19802606,2783.3,2783.0,0.968]
[1749611201590,6.24202606,2783.1,2783.0,0.968]
[1749611202105,6.24202606,2783.2,2783.0,0.968]
[1749611202307,0.956,2783.3,2783.0,0.968]
[1749611202526,3.689,2783.4,2783.0,0.968]
[1749611202675,4.6251,2783.5,2783.0,0.968]
[1749611202875,5.71181261,2783.5,2783.0,0.968]
[1749611203377,6.24202606,2783.4,2783.0,0.968]
[1749611208651,6.24202606,2783.4,2782.5,0.51]
[1749611209812,6.24202606,2783.4,2782.6,10.266]
[1749611214023,0.55,2783.8,2782.8,6.24202606]
[1749611214218,7.56939867,2783.8,2782.9,3.689]
[1749611214646,6.24202606,2783.6,2782.9,3.689]
[1749611214844,6.24202606,2783.4,2783.0,0.966]
[1749611219634,0.9417,2783.5,2783.0,0.966]
[1749611220458,3.689,2783.5,2783.0,0.966]
[1749611221240,0.9387,2783.7,2783.0,0.966]
[1749611221443,9.93102606,2783.8,2783.0,0.966]
[1749611221651,0.04,2783.9,2783.2,6.24202606]
[1749611222149,0.04,2783.9,2783.2,6.6806735]
[1749611223211,0.04,2783.9,2783.4,6.24202606]
[1749611224155,0.04,2783.9,2783.5,3.689]
[1749611226042,0.04,2783.9,2783.2,6.24202606]
[1749611226346,0.04,2783.9,2783.3,4.654]
[1749611227651,6.28202606,2783.9,2783.4,0.965]
[1749611228015,6.28202606,2783.9,2783.0,0.51]
[1749611228016,6.24202606,2783.7,2783.5,0.965]
[1749611228452,7.00500867,2783.9,2783.5,0.965]
[1749611228929,6.28202606,2783.9,2783.5,0.965]
[1749611229332,0.04,2783.9,2783.5,0.965]
[1749611234052,0.04,2783.9,2783.6,0.0166204]
[1749611234216,0.04,2783.9,2783.7,9.298]
[1749611234663,0.04,2783.9,2783.8,0.0166192]
[1749611235018,1.039,2783.9,2783.8,0.9816192]
[1749611237932,1.039,2783.9,2783.8,0.965]
[1749611238155,1.039,2783.9,2783.8,0.96669178]
[1749611239530,1.039,2783.9,2783.8,0.965]
[1749611239737,1.76710261,2783.9,2783.8,0.965]
[1749611240467,2.31710261,2783.9,2783.8,0.965]
[1749611240972,6.00410261,2783.9,2783.8,0.965]
[1749611241156,0.55,2783.6,2782.7,0.51]
[1749611241467,6.24202606,2783.3,2782.8,0.965]
[1749611241671,6.24202606,2783.3,2782.9,0.965]
[1749611242734,6.24202606,2783.3,2783.0,0.0123663]
[1749611243469,0.9242,2783.5,2783.0,0.0123663]
[1749611244035,4.6122,2783.7,2783.0,0.0123663]
[1749611244729,6.24202606,2783.6,2783.0,0.0123663]
[1749611244937,7.32744867,2783.6,2783.0,0.0123663]
[1749611245149,6.24202606,2783.4,2783.1,9.299]
[1749611245736,1.08542261,2783.6,2783.1,9.299]
[1749611246074,6.24202606,2783.5,2783.1,9.299]
[1749611246478,6.24202606,2783.5,2783.2,0.0123663]
[1749611248076,0.55,2783.6,2783.2,0.0123663]
[1749611249087,0.9242,2783.7,2783.2,0.0123663]
[1749611250579,4.6684,2783.9,2783.2,0.0123663]
[1749611250779,0.9804,2783.9,2783.2,6.25439236]
[1749611251085,0.04,2783.9,2783.4,6.24202606]
[1749611251795,0.04,2783.9,2783.3,6.24202606]
[1749611252093,0.04,2783.9,2783.5,0.0123663]
[1749611254993,0.04,2783.9,2783.5,6.25439236]
[1749611255498,0.04,2783.9,2783.5,0.0123663]
[1749611260099,0.04,2783.9,2783.5,6.25439236]
[1749611260760,0.88,2783.8,2783.5,0.0123663]
[1749611260962,0.88,2783.8,2783.6,0.965]
[1749611261493,1.61540261,2783.7,2783.6,0.965]
[1749611262527,1.61540261,2783.7,2783.1,9.299]
[1749611262528,0.55,2783.6,2783.1,9.299]
[1749611262692,0.55,2783.6,2783.2,0.965]
[1749611263090,0.8808,2783.5,2783.2,0.965]
[1749611265501,0.55,2783.4,2783.2,0.965]
[1749611265702,1.4345,2783.3,2783.2,0.965]
[1749611265930,2.25715261,2783.3,2783.2,0.965]
[1749611266646,1.4345,2783.3,2783.2,0.965]
[1749611268936,10.64522867,2783.7,2783.2,0.965]
[1749611268937,0.9381,2783.6,2783.2,0.965]
[1749611271852,0.55,2783.5,2783.2,0.965]
[1749611272038,0.8797,2783.4,2783.2,0.965]
[1749611272348,0.55,2783.3,2783.2,0.965]
[1749611272534,1.37217261,2783.3,2783.2,0.965]
[1749611273917,0.55,2783.3,2783.2,0.965]
[1749611274449,0.55,2783.3,2783.1,9.299]
[1749611274642,0.55,2783.3,2783.2,0.965]
[1749611283238,0.55,2783.3,2783.2,10.265]
[1749611284335,0.8797,2783.4,2783.2,10.265]
[1749611284536,0.359,2783.8,2783.2,16.50702606]
[1749611284742,0.9357,2783.9,2783.4,6.24202606]
[1749611284940,0.55,2783.8,2783.4,6.24202606]
[1749611285273,0.9357,2783.9,2781.4,7.96]
[1749611285274,0.04,2783.9,2783.5,10.266]
[1749611285443,0.04,2783.9,2783.6,0.965]
[1749611287772,0.04,2783.9,2783.5,9.301]
[1749611288074,0.9311,2783.7,2783.6,0.965]
[1749611293347,0.909,2783.8,2783.6,0.965]
[1749611294071,0.55,2783.8,2783.6,0.965]
[1749611294276,0.909,2783.8,2783.6,0.965]
[1749611295454,0.55,2783.8,2783.6,0.965]
[1749611295656,0.909,2783.8,2783.6,0.965]
[1749611295863,1.16718926,2783.8,2783.6,0.965]
[1749611296065,0.04,2783.9,2783.6,10.89402606]
[1749611296270,0.04,2783.9,2783.8,6.24202606]
[1749611296465,0.04,2783.9,2783.8,9.92902606]
[1749611297288,0.04,2783.9,2783.8,39.92902606]
[1749611297461,0.04,2783.9,2783.8,40.38511176]
[1749611297796,0.04,2783.9,2783.8,0.964]
[1749611300086,0.04,2783.9,2783.5,9.301]
[1749611300390,0.04,2783.9,2783.8,0.964]
[1749611301678,0.04,2783.9,2783.5,9.301]
[1749611301881,0.59,2783.9,2783.8,0.964]
[1749611303182,0.04,2783.9,2783.8,0.964]
[1749611305178,0.04,2783.9,2783.8,10.4902826]
[1749611306712,0.04,2783.9,2783.8,31.3503683]
[1749611307010,0.04,2783.9,2783.8,10.4902826]
[1749611308506,0.04,2783.9,2783.5,18.8272826]
[1749611308669,0.04,2783.9,2783.6,4.672]
[1749611309765,0.04,2783.9,2783.7,10.0]
[1749611309961,0.04,2783.9,2783.8,3.707]
[1749611312114,0.04,2783.9,2783.7,3.707]
[1749611315004,0.04,2783.9,2783.8,0.964]
[1749611318602,0.04,2783.9,2783.4,0.51]
[1749611318791,0.04,2783.9,2783.5,0.964]
[1749611318994,0.04,2783.9,2783.6,9.5262826]
[1749611319297,0.001817,2783.9,2783.8,6.23425584]
[1749611321306,0.001817,2783.9,2783.8,9.93725584]
[1749611324224,0.001817,2783.9,2783.8,39.93725584]
[1749611324543,0.001817,2783.9,2783.8,40.86253895]
[1749611324844,0.001817,2783.9,2783.8,39.93725584]
[1749611325050,0.001817,2783.9,2783.5,30.0]
[1749611325233,0.001817,2783.9,2783.8,32.23425584]
[1749611325434,0.001817,2783.9,2783.8,35.93525584]
[1749611325741,0.001817,2783.9,2783.8,27.57425584]
[1749611326056,0.001817,2783.9,2783.8,20.71625584]
[1749611326257,0.001817,2783.9,2783.8,16.04125584]
[1749611326743,0.001817,2783.9,2783.8,20.71725584]
[1749611327457,0.001817,2783.9,2783.8,51.61333895]
[1749611327658,0.001817,2783.9,2783.8,51.18645325]
[1749611327975,0.001817,2783.9,2783.8,50.71725584]
[1749611332287,0.001817,2783.9,2783.8,39.68625584]
[1749611334269,0.001817,2783.9,2783.8,14.481]
[1749611334565,0.001817,2783.9,2783.8,20.71525584]
[1749611337679,0.001817,2783.9,2783.8,20.71025584]
[1749611337972,0.001817,2783.9,2783.8,51.60633895]
[1749611338569,0.001817,2783.9,2783.8,51.17945325]
[1749611338739,0.001817,2783.9,2783.8,50.71025584]
[1749611345762,0.001817,2783.9,2783.8,17.01525584]
[1749611346075,0.001817,2783.9,2783.8,20.70425584]
[1749611346437,2.093e-05,2783.9,2783.8,20.70425584]
[1749611346770,2.093e-05,2783.9,2783.8,50.70425584]
[1749611346971,2.093e-05,2783.9,2783.8,51.17345325]
[1749611347333,2.093e-05,2783.9,2783.8,50.70425584]
[1749611349875,0.9709,2784.7,2783.8,50.70425584]
[1749611350049,0.04,2784.9,2784.6,6.23425584]
[1749611350374,0.04,2784.9,2784.8,36.23425584]
[1749611350573,0.04,2784.9,2784.8,39.93325584]
[1749611350943,0.04,2784.9,2784.8,40.79423054]
[1749611351274,0.04,2784.9,2784.8,13.5239747]
[1749611351469,0.04,2784.9,2784.8,19.75823054]
[1749611352176,0.04,2784.9,2784.8,19.96216989]
[1749611352965,0.04,2784.9,2784.8,16.26316989]
[1749611353165,0.04,2784.9,2784.8,20.93316989]
[1749611353542,0.04,2784.9,2784.8,21.48316989]
[1749611353743,0.05,2785.4,2785.0,30.0]
[1749611353948,0.05,2785.4,2785.3,36.23425584]
[1749611354283,0.8935,2786.4,2785.4,30.0]
[1749611354446,0.04,2786.9,2785.8,6.23425584]
[1749611354797,0.04,2786.9,2785.8,50.19925584]
[1749611354798,0.8935,2786.6,2785.8,50.19925584]
[1749611355781,0.8935,2786.6,2785.8,43.94725584]
[1749611355977,0.8935,2786.6,2785.8,35.32125584]
[1749611356284,0.9559,2786.1,2785.8,13.964]
[1749611356792,0.9559,2786.1,2785.8,10.266]
[1749611357587,0.9559,2786.1,2785.8,46.50025584]
[1749611357944,0.9559,2786.3,2785.8,46.50025584]
[1749611358785,0.9393,2786.7,2785.8,46.50025584]
[1749611359345,0.9393,2786.7,2785.8,40.266]
[1749611359550,0.9393,2786.7,2785.8,46.50025584]
[1749611360260,0.9393,2786.7,2785.8,30.0]
[1749611360462,2.13913333,2786.2,2785.8,10.263]
[1749611360667,1.16853333,2786.2,2785.8,39.02725584]
[1749611362661,1.16853333,2786.2,2785.8,39.49645325]
[1749611362860,1.16853333,2786.2,2785.8,39.02725584]
[1749611363298,1.16853333,2786.2,2785.8,38.05625584]
[1749611363478,1.16853333,2786.2,2785.8,42.73025584]
[1749611364100,0.9257,2786.1,2785.8,13.97]
[1749611365486,0.9257,2786.1,2785.8,13.967]
[1749611370417,1.16853333,2786.2,2785.8,7.20525584]
[1749611370614,1.16853333,2786.2,2785.8,37.20525584]
[1749611371116,1.16853333,2786.2,2785.8,37.67445325]
[1749611371480,1.16853333,2786.2,2785.8,41.37845325]
[1749611372794,0.00296728,2785.9,2785.8,41.37845325]
[1749611373521,0.00296728,2785.9,2785.8,40.90925584]
[1749611374897,0.00296728,2785.9,2785.8,44.96808638]
[1749611375097,0.04,2786.9,2786.8,6.23425584]
[1749611375382,0.04,2786.9,2786.8,7.20525584]
[1749611376021,0.04,2786.9,2786.8,4.672]
[1749611376499,0.04,2786.9,2786.8,10.90625584]
[1749611381329,0.04,2786.9,2786.8,4.672]
[1749611382958,0.885,2786.8,2786.5,3.694]
[1749611383237,0.885,2786.8,2786.4,0.51]
[1749611383238,0.885,2786.8,2786.6,0.97]
[1749611384235,0.885,2786.8,2786.7,0.97]
[1749611384445,0.885,2786.7,2786.0,0.36065796]
[1749611384608,0.885,2786.7,2786.1,10.258]
[1749611385144,0.885,2786.7,2786.2,6.23425584]
[1749611385838,0.885,2786.7,2786.2,6.0325147]
[1749611386037,0.885,2786.7,2786.2,6.23425584]
[1749611387541,0.885,2786.7,2786.4,6.23425584]
[1749611387706,0.885,2786.7,2786.6,6.23425584]
[1749611389118,0.885,2786.7,2786.5,6.23425584]
[1749611389438,0.04,2786.9,2786.5,9.93125584]
[1749611389602,0.9039,2786.9,2786.5,9.93125584]
[1749611390842,0.9039,2786.9,2786.5,3.697]
[1749611391339,0.9039,2786.9,2786.6,0.97]
[1749611391703,0.9039,2786.9,2786.7,0.97]
[1749611391904,0.9039,2786.9,2786.8,0.97]
[1749611397417,1.61771558,2786.9,2786.8,0.97]
[1749611398544,1.61771558,2786.9,2786.1,9.288]
[1749611398724,0.8815,2786.8,2786.2,0.97]
[1749611400928,0.8815,2786.8,2786.4,6.23425584]
[1749611401270,0.04,2786.9,2786.6,6.23425584]
[1749611401463,0.04,2786.9,2786.3,6.23425584]
[1749611401914,0.8722,2786.8,2786.2,0.97]
[1749611402119,0.8722,2786.8,2786.1,15.52225584]
[1749611402120,0.8722,2786.8,2786.1,9.288]
[1749611402320,6.23425584,2786.8,2786.1,9.288]
[1749611402657,0.8722,2786.6,2786.2,0.97]
[1749611404149,0.8722,2786.6,2786.3,0.97]
[1749611406646,0.8722,2786.6,2786.4,0.97]